bitfinex/quotes_ETHUSD_20240823
["timestamp","ask_amount","ask_price","bid_price","bid_amount"]
[1724372890271,2.82530392,2642.3,2641.6,7.57098]
[1724372890494,2.4712,2642.0,2641.5,3.78572]
[1724372891067,2.4712,2642.0,2641.4,7.57156]
[1724372891272,2.70663918,2641.8,2641.5,3.78571]
[1724372891870,2.70663918,2641.8,2641.3,3.78589]
[1724372892189,2.70663918,2641.8,2641.4,3.78583]
[1724372892868,3.2244231,2641.8,2641.1,3.7863]
[1724372893075,2.349,2641.7,2641.1,3.7863]
[1724372893581,2.349,2641.7,2641.2,3.78614]
[1724372894617,2.349,2641.7,2641.2,3.78607]
[1724372894823,2.349,2641.7,2641.4,3.78586]
[1724372895121,2.349,2641.7,2641.6,3.78558]
[1724372895266,2.2815,2642.0,2641.6,0.757144]
[1724372895531,2.70663918,2642.1,2641.9,3.78506]
[1724372895995,2.70663918,2642.1,2641.2,3.78608]
[1724372895996,2.2815,2642.0,2641.2,3.78608]
[1724372896289,2.2553,2641.7,2641.2,3.78608]
[1724372896590,2.2553,2641.7,2641.0,7.5727]
[1724372896591,2.75149392,2641.7,2641.0,7.5727]
[1724372896896,2.75149392,2641.7,2641.1,3.78629]
[1724372896897,2.70663918,2641.5,2641.1,3.78629]
[1724372897100,2.494,2641.4,2641.0,3.78632]
[1724372897390,2.70663918,2641.2,2640.9,3.78655]
[1724372897880,2.70663918,2641.2,2640.8,3.78663]
[1724372898535,6.10786942,2641.4,2640.8,3.78663]
[1724372898741,6.71865636,2641.4,2640.8,3.78663]
[1724372898975,6.71865636,2641.4,2641.0,3.78641]
[1724372899785,6.71865636,2641.4,2640.8,3.78663]
[1724372900087,6.71865636,2641.4,2640.9,3.78654]
[1724372900466,6.71865636,2641.4,2640.8,3.7866]
[1724372900658,0.67186564,2641.3,2640.8,3.7866]
[1724372901386,0.67186564,2641.3,2640.8,7.57323]
[1724372901797,0.67186564,2641.3,2640.8,7.57325]
[1724372902088,0.67186564,2641.3,2640.9,3.78654]
[1724372902288,6.10786942,2641.4,2640.9,3.78654]
[1724372903699,6.10786942,2641.4,2641.0,3.78642]
[1724372904057,6.10786942,2641.4,2640.8,3.78663]
[1724372904397,6.10786942,2641.4,2641.0,3.78637]
[1724372904995,2.4258,2641.3,2640.4,3.78716]
[1724372905194,2.4258,2640.9,2640.4,3.78716]
[1724372906360,2.4258,2640.9,2640.5,3.78715]
[1724372906876,2.4258,2640.9,2640.6,3.787]
[1724372907188,2.4258,2641.2,2640.9,3.78649]
[1724372907391,2.66838,2641.2,2640.9,3.78649]
[1724372907591,2.4258,2641.2,2640.9,7.573]
[1724372908002,7.52386942,2641.6,2641.2,3.78608]
[1724372908216,2.458,2641.5,2641.2,3.78608]
[1724372908362,2.458,2641.5,2641.1,3.78629]
[1724372909465,3.06518694,2641.5,2640.9,7.57303]
[1724372909670,3.06518694,2641.5,2640.9,3.78646]
[1724372910564,3.06518694,2641.5,2641.1,3.78622]
[1724372911419,3.06518694,2641.5,2641.1,7.57244]
[1724372911582,2.458,2641.5,2641.2,3.78608]
[1724372912519,2.458,2641.5,2641.3,3.78598]
[1724372912681,3.91,2641.7,2641.3,3.78598]
[1724372913618,3.91,2641.7,2641.4,3.78585]
[1724372913833,3.91,2641.7,2641.3,3.78598]
[1724372913965,3.91,2641.7,2641.3,3.78594]
[1724372914165,3.91,2641.7,2641.3,7.57187]
[1724372914638,3.91,2641.7,2641.3,3.78592]
[1724372914872,3.91,2641.7,2641.5,3.78571]
[1724372915163,3.91,2641.7,2641.3,3.78591]
[1724372915343,3.91,2641.7,2641.3,7.57184]
[1724372915657,3.91,2641.7,2641.3,7.57183]
[1724372915842,3.91,2641.7,2641.4,3.78585]
[1724372916047,3.91,2641.7,2641.3,7.57178]
[1724372916229,3.91,2641.7,2641.4,3.78585]
[1724372916921,3.91,2641.7,2641.5,3.78572]
[1724372917814,3.91,2641.7,2641.5,7.57137]
[1724372918124,3.91,2641.7,2641.5,3.78565]
[1724372918444,3.91,2641.7,2641.4,3.78586]
[1724372918652,3.91,2641.7,2641.3,3.7859]
[1724372919644,3.91,2641.7,2641.3,7.57183]
[1724372920156,3.91,2641.7,2641.3,3.7859]
[1724372920514,2.70950105,2641.6,2641.3,3.7859]
[1724372920719,2.70950105,2641.6,2641.3,7.57183]
[1724372920929,2.45,2641.5,2640.8,3.78664]
[1724372921139,2.70950105,2641.1,2640.8,3.78664]
[1724372921309,2.70950105,2641.1,2641.0,3.78644]
[1724372921710,2.70950105,2641.4,2640.9,3.78648]
[1724372921916,2.70950105,2641.4,2641.1,3.78623]
[1724372922958,2.70950105,2641.4,2640.9,7.57293]
[1724372923161,2.70950105,2641.4,2640.8,3.78668]
[1724372923162,3.31546417,2641.4,2640.8,3.78668]
[1724372923377,2.4386,2641.0,2640.6,3.787]
[1724372923518,2.70950105,2640.8,2640.4,3.7873]
[1724372923715,2.70950105,2640.8,2640.3,3.78734]
[1724372924449,2.70950105,2640.8,2640.3,7.57469]
[1724372924621,2.70950105,2640.8,2640.3,3.78734]
[1724372924821,2.70950105,2640.8,2640.4,3.78719]
[1724372925336,2.70950105,2640.8,2640.5,3.78713]
[1724372926156,2.70950105,2640.8,2640.6,3.787]
[1724372927954,2.70950105,2640.8,2640.5,3.78709]
[1724372928560,2.70950105,2640.8,2640.5,7.57416]
[1724372928874,2.70950105,2640.8,2640.5,3.78707]
[1724372929613,2.70950105,2640.8,2640.5,7.57415]
[1724372930328,2.70950105,2640.8,2640.6,3.787]
[1724372931134,2.70950105,2640.8,2640.5,3.78706]
[1724372931535,3.22431116,2640.8,2640.5,3.78706]
[1724372931733,3.22431116,2640.8,2640.3,3.78734]
[1724372932058,2.70950105,2640.5,2640.3,3.78734]
[1724372932267,2.70950105,2640.5,2640.2,3.78756]
[1724372932432,2.70950105,2640.5,2640.1,3.78765]
[1724372932953,3.21813115,2640.5,2640.1,3.78765]
[1724372933263,5.12780105,2640.2,2640.0,3.78779]
[1724372934050,5.12780105,2640.2,2639.9,3.78801]
[1724372938241,5.12780105,2640.2,2640.0,3.78787]
[1724372939096,5.12780105,2640.2,2639.8,7.57611]
[1724372939247,5.12780105,2640.2,2639.8,3.78808]
[1724372939248,2.70950105,2639.9,2639.8,3.78808]
[1724372939450,2.70950105,2639.9,2639.8,3.78671902]
[1724372940916,2.4884,2639.8,2639.4,3.7886]
[1724372941103,2.75935011,2639.8,2639.4,3.7886]
[1724372941300,2.70950105,2639.6,2639.3,3.78883]
[1724372941535,2.70950105,2639.6,2639.2,3.78888]
[1724372943194,2.70950105,2639.6,2639.2,7.57783]
[1724372943395,2.70950105,2639.6,2639.2,3.78888]
[1724372943396,0.27095011,2639.5,2639.2,3.78888]
[1724372945571,5.46885116,2639.8,2639.5,3.78858]
[1724372945717,5.19790105,2639.8,2639.5,3.78852]
[1724372945922,5.19790105,2639.8,2639.5,3.78855]
[1724372946850,5.19790105,2639.8,2639.3,7.57753]
[1724372947036,5.19790105,2639.8,2639.3,3.78875]
[1724372947239,5.19790105,2639.8,2639.5,3.78859]
[1724372947240,0.51979011,2639.7,2639.5,3.78859]
[1724372948379,6.61950105,2640.1,2639.8,3.78807]
[1724372948529,2.70950105,2640.1,2639.8,3.78807]
[1724372948873,2.70950105,2640.1,2639.6,3.78836]
[1724372949236,2.70950105,2640.1,2639.4,7.57729]
[1724372949237,2.70950105,2639.8,2639.4,7.57729]
[1724372950166,2.70950105,2639.8,2639.4,3.78864]
[1724372950365,0.27095011,2639.7,2639.4,3.78864]
[1724372951545,0.27095011,2639.7,2639.5,3.78858]
[1724372952287,0.27095011,2639.7,2639.4,3.78864]
[1724372952288,0.27095011,2639.7,2639.6,3.78845]
[1724372952429,2.70950105,2639.8,2639.6,3.78845]
[1724372952633,2.70950105,2639.8,2639.5,3.78858]
[1724372952634,2.70950105,2639.8,2639.7,3.7883]
[1724372953384,2.70950105,2639.8,2639.5,3.78858]
[1724372953587,2.98045116,2639.8,2639.5,3.78858]
[1724372954098,2.98045116,2639.8,2639.3,7.57758]
[1724372954389,2.70950105,2639.5,2639.1,3.78904]
[1724372954576,2.70950105,2639.5,2639.2,3.78895]
[1724372955134,3.22278116,2639.5,2639.1,3.78904]
[1724372955383,3.22278116,2639.5,2639.0,3.78922]
[1724372955737,3.22278116,2639.5,2639.1,3.78915]
[1724372956355,3.22278116,2639.5,2639.2,3.789]
[1724372956982,3.22278116,2639.5,2639.1,3.78916]
[1724372957183,0.32227812,2639.4,2639.1,7.57825]
[1724372957336,0.32227812,2639.4,2639.1,3.78909]
[1724372957544,2.3903,2639.3,2639.1,3.78909]
[1724372958391,2.70950105,2639.2,2638.9,3.78937]
[1724372958576,2.98075886,2639.2,2639.0,3.78931]
[1724372960099,2.98075886,2639.2,2638.3,6.22849]
[1724372960245,2.98075886,2639.2,2638.8,3.78949]
[1724372960593,0.53710589,2639.1,2638.9,3.78945]
[1724372960892,0.53710589,2639.1,2638.8,3.78949]
[1724372961471,0.53710589,2639.1,2638.6,7.57953]
[1724372961844,2.484,2639.0,2638.7,3.78969]
[1724372962064,2.484,2639.0,2638.6,3.78974]
[1724372962065,2.83578648,2639.0,2638.6,3.78974]
[1724372962464,2.70950105,2638.9,2638.6,3.78974]
[1724372964727,2.70950105,2638.9,2638.4,3.79006]
[1724372964930,2.70950105,2638.9,2638.7,3.78974]
[1724372965074,2.83578648,2639.0,2638.7,3.78974]
[1724372969027,2.83578648,2639.0,2638.7,3.78964]
[1724372969318,2.83578648,2639.0,2638.8,3.7895]
[1724372969689,0.35178648,2639.0,2638.8,3.7895]
[1724372969902,2.3526,2639.1,2638.9,3.78936]
[1724372970433,2.3526,2639.1,2638.8,3.7896]
[1724372973779,2.3526,2639.1,2638.7,7.57934]
[1724372973920,2.3526,2639.1,2638.8,3.78959]
[1724372974442,5.06210105,2639.1,2638.8,3.78959]
[1724372975124,6.25931115,2639.1,2638.6,3.78981]
[1724372981257,6.25931115,2639.1,2638.7,3.78973]
[1724372981455,2.70950105,2639.0,2638.7,3.78973]
[1724372983498,3.33543217,2639.0,2638.7,3.78973]
[1724372983858,3.33543217,2639.0,2638.7,3.78967]
[1724372984565,3.33543217,2639.0,2638.8,3.78959]
[1724372984792,3.33543217,2639.0,2638.7,3.78967]
[1724372984951,3.33543217,2639.0,2638.7,7.57931]
[1724372985149,3.33543217,2639.0,2638.7,3.78964]
[1724372985619,3.91,2639.3,2638.8,2.3439]
[1724372985768,2.4243,2640.0,2639.3,2.3439]
[1724372985972,2.4243,2640.0,2639.9,3.78802]
[1724372986164,3.94232438,2640.1,2640.0,7.57574]
[1724372989201,3.91,2640.3,2640.2,7.57518]
[1724372992424,3.0,2641.1,2640.0,3.78784]
[1724372992425,8.01430105,2641.1,2640.8,3.78659]
[1724372993284,8.01430105,2641.1,2640.6,3.78691]
[1724372993608,8.01430105,2641.1,2640.4,3.78721]
[1724372993609,2.3048,2640.7,2640.4,3.78718]
[1724372994108,2.3048,2640.7,2640.5,3.78708]
[1724372994308,2.3048,2640.7,2640.4,3.78718]
[1724372994470,0.23048,2640.6,2640.4,3.78718]
[1724372994922,4.06093116,2641.0,2640.4,3.78718]
[1724372994923,1.35143011,2641.0,2640.4,3.78718]
[1724372995108,3.91,2641.3,2641.1,3.78629]
[1724372995317,3.91,2641.3,2641.2,3.78615]
[1724372995521,3.91,2641.3,2641.1,3.78629]
[1724372995793,2.3675,2641.1,2640.5,3.78711]
[1724372995994,2.3675,2640.7,2640.1,3.78763]
[1724372996169,2.3675,2640.7,2640.2,3.78748]
[1724372996372,2.3675,2640.7,2640.3,3.78743]
[1724372996571,0.5077001,2640.6,2640.3,3.78743]
[1724372997312,0.5077001,2640.6,2640.3,7.57476]
[1724372997471,0.5077001,2640.6,2640.3,3.78733]
[1724372997866,0.5077001,2640.6,2640.3,7.57466]
[1724372998414,0.5077001,2640.6,2640.4,3.78729]
[1724372998717,2.3844,2641.0,2640.9,3.78658]
[1724372998925,5.3844,2641.2,2640.9,3.78658]
[1724372999132,0.92944,2641.1,2640.8,3.78668]
[1724372999776,3.63894105,2641.1,2640.8,3.78668]
[1724373000517,3.63894105,2641.1,2640.4,3.78726]
[1724373000700,2.2739,2640.6,2640.2,3.78753]
[1724373000938,0.4983401,2640.5,2640.0,3.78786]
[1724373001087,2.2739,2640.9,2640.1,3.78767]
[1724373001300,2.2739,2640.9,2640.7,3.78684]
[1724373001480,2.70950105,2641.0,2640.7,3.78678]
[1724373003235,2.70950105,2641.0,2640.8,3.78669]
[1724373003414,2.70950105,2641.0,2640.7,3.78678]
[1724373003606,3.31654,2641.1,2640.7,3.78678]
[1724373003607,0.92944,2641.1,2640.8,3.78673]
[1724373003807,0.92944,2641.1,2641.0,3.78644]
[1724373004039,6.61950105,2641.3,2641.1,3.7863]
[1724373004308,6.61950105,2641.3,2640.9,3.78647]
[1724373004522,0.96195011,2641.1,2640.9,3.78647]
[1724373004808,6.61950105,2641.3,2641.0,3.78643]
[1724373005020,6.61950105,2641.3,2641.2,3.78615]
[1724373005501,6.61950105,2641.3,2641.0,7.57275]
[1724373005714,6.61950105,2641.3,2641.1,3.78628]
[1724373006638,3.91,2641.3,2641.1,3.78628]
[1724373007226,3.91,2641.3,2641.0,3.78632]
[1724373007539,4.601,2641.3,2641.0,3.78632]
[1724373009138,4.601,2641.3,2641.1,3.78629]
[1724373009336,3.91,2641.3,2641.1,3.78629]
[1724373010833,3.91,2641.3,2641.1,3.78622]
[1724373011739,3.91,2641.3,2641.2,3.78615]
[1724373012398,2.3123,2641.2,2640.6,3.78692]
[1724373012621,5.41280105,2641.2,2640.4,3.7872]
[1724373012827,2.482,2641.0,2640.3,3.78743]
[1724373013143,2.482,2641.0,2640.3,3.78737]
[1724373013445,2.482,2641.0,2640.4,3.7873]
[1724373013640,2.482,2641.0,2640.5,3.78714]
[1724373014204,2.482,2641.0,2640.5,7.57422]
[1724373014398,0.39642801,2640.9,2640.6,3.787]
[1724373015158,0.9322801,2641.1,2640.4,2.4688]
[1724373015361,3.391,2641.2,2640.9,3.78651]
[1724373015571,3.391,2641.2,2640.7,7.57352]
[1724373015728,3.391,2641.2,2640.7,3.78675]
[1724373015913,2.472,2641.1,2640.3,3.78737]
[1724373016258,0.85725011,2641.0,2640.3,3.78735]
[1724373016572,0.85725011,2641.0,2640.5,3.78714]
[1724373016573,3.85725011,2641.0,2640.5,3.78714]
[1724373016772,3.85725011,2641.0,2640.6,3.78689]
[1724373017365,3.85725011,2641.0,2640.7,3.78685]
[1724373017728,3.85725011,2641.0,2640.7,3.78679]
[1724373017949,0.63292501,2640.9,2640.7,3.78679]
[1724373018263,0.63292501,2640.9,2640.7,7.57359]
[1724373018563,0.63292501,2640.9,2640.7,3.78679]
[1724373019260,3.0,2641.0,2640.7,3.78679]
[1724373019465,0.391,2641.2,2640.9,7.57308]
[1724373019637,3.91,2641.3,2641.1,3.78622]
[1724373020168,3.91,2641.3,2640.9,3.78645]
[1724373020329,3.91,2641.3,2641.1,3.78629]
[1724373020714,3.91,2641.3,2640.9,3.78645]
[1724373021059,3.91,2641.3,2640.7,3.78678]
[1724373021244,0.63236,2641.2,2640.7,3.78678]
[1724373021720,0.63236,2641.2,2640.7,7.57358]
[1724373021921,0.63236,2641.2,2640.7,7.57356]
[1724373022558,0.63236,2641.2,2640.8,3.78671]
[1724373023154,0.63236,2641.2,2640.9,3.78657]
[1724373023558,3.91,2641.3,2640.6,2.4734]
[1724373023559,3.91,2641.3,2641.2,3.78615]
[1724373023870,3.91,2641.3,2641.2,7.5723]
[1724373027124,3.91,2641.3,2641.2,9.8706]
[1724373028575,3.91,2641.3,2641.2,13.65675]
[1724373032580,3.0,2642.0,2641.5,3.78558]
[1724373032790,0.54297,2642.0,2641.6,3.78556]
[1724373032989,3.54297,2642.0,2641.6,3.78556]
[1724373033885,3.54297,2642.0,2641.4,7.57156]
[1724373034059,6.25247105,2642.0,2641.4,3.78577]
[1724373034381,2.2661,2641.8,2641.0,3.78634]
[1724373034606,2.2661,2641.8,2641.2,3.78605]
[1724373034953,2.2661,2641.8,2641.0,3.78634]
[1724373035153,5.2661,2641.8,2641.0,3.78634]
[1724373035346,0.5863367,2641.7,2641.2,3.78613]
[1724373035548,0.5863367,2641.7,2641.2,7.57226]
[1724373035776,0.5863367,2641.7,2641.0,3.78631]
[1724373035943,2.368,2641.6,2641.0,3.78631]
[1724373036474,2.368,2641.6,2641.2,3.78614]
[1724373037387,2.96343367,2641.6,2641.2,3.78614]
[1724373038145,2.96343367,2641.6,2641.0,3.78638]
[1724373038520,2.96343367,2641.6,2641.0,7.57274]
[1724373038662,2.96343367,2641.6,2641.0,3.78636]
[1724373039061,2.96343367,2641.6,2641.1,3.78619]
[1724373039265,0.56729347,2641.5,2641.1,3.78619]
[1724373040211,2.70950105,2641.4,2640.5,3.78706]
[1724373040506,5.10590105,2641.1,2640.5,3.78706]
[1724373040805,5.10590105,2641.1,2640.5,7.57412]
[1724373041022,2.3869,2640.9,2640.3,11.14732]
[1724373041183,2.70950105,2640.8,2640.3,14.93468]
[1724373041364,2.3869,2640.9,2640.4,3.78727]
[1724373041700,3.28669912,2640.9,2640.4,3.78727]
[1724373042101,3.28669912,2640.9,2640.5,3.78712]
[1724373042468,3.28669912,2640.9,2640.3,7.57463]
[1724373042704,2.70950105,2640.8,2640.3,3.78731]
[1724373042904,0.59962002,2640.7,2640.3,3.78731]
[1724373043210,0.59962002,2640.7,2640.3,7.57467]
[1724373043505,0.59962002,2640.7,2640.3,3.78731]
[1724373044386,2.70950105,2640.8,2640.3,3.78731]
[1724373044702,3.28669912,2640.9,2640.0,19.81]
[1724373044903,2.3869,2640.9,2640.7,3.78679]
[1724373045214,3.0,2641.0,2640.7,3.78674]
[1724373045364,3.0,2641.1,2640.9,3.78658]
[1724373045566,3.92167,2641.1,2640.9,3.78658]
[1724373045972,6.2167,2641.2,2640.9,7.57307]
[1724373046182,6.2167,2641.2,2640.7,3.78674]
[1724373046779,6.2167,2641.2,2640.5,3.78709]
[1724373046780,6.2167,2641.2,2640.5,7.57411]
[1724373046931,6.2167,2641.2,2640.5,7.5741]
[1724373047131,6.2167,2641.2,2640.5,7.57408]
[1724373047132,2.70950105,2641.1,2640.5,7.57408]
[1724373047335,0.89262011,2641.0,2640.5,3.78702]
[1724373047513,0.89262011,2641.0,2640.3,11.14733]
[1724373047880,0.89262011,2641.0,2640.3,7.36]
[1724373048080,0.89262011,2641.0,2640.5,3.78705]
[1724373048481,0.89262011,2641.0,2640.5,7.57413]
[1724373048677,6.2167,2641.2,2640.8,3.78664]
[1724373050344,6.2167,2641.2,2640.9,3.78658]
[1724373051252,6.2167,2641.2,2640.7,3.78673]
[1724373052099,6.2167,2641.2,2640.6,3.787]
[1724373053247,6.2167,2641.2,2640.9,3.78645]
[1724373053454,6.2167,2641.2,2640.7,3.78675]
[1724373053455,3.91,2641.2,2640.7,3.78675]
[1724373053752,3.91,2641.2,2641.1,3.7863]
[1724373055297,3.91,2641.2,2641.0,3.78644]
[1724373055625,3.91,2641.2,2641.0,7.57288]
[1724373055837,3.91,2641.2,2641.0,3.78644]
[1724373056197,3.91,2641.2,2641.1,3.7863]
[1724373057056,3.91,2641.2,2641.1,7.5726]
[1724373057203,5.70950105,2641.7,2641.3,3.786]
[1724373057397,3.0,2641.6,2641.3,3.786]
[1724373058238,3.0,2641.6,2641.2,3.78615]
[1724373058443,3.0,2641.6,2640.9,3.78648]
[1724373058827,2.2879,2641.5,2640.9,3.78648]
[1724373059014,0.52879,2641.4,2640.9,3.78648]
[1724373059515,0.52879,2641.4,2640.9,7.57298]
[1724373060644,2.2879,2641.5,2640.9,3.78648]
[1724373060858,2.2879,2641.5,2641.1,3.78622]
[1724373061082,3.0,2641.6,2640.7,2.3844]
[1724373061342,3.0,2641.6,2641.3,3.78596]
[1724373061523,3.0,2641.6,2641.4,3.78585]
[1724373062435,3.91,2641.7,2641.4,3.78579]
[1724373062595,3.0,2641.6,2641.4,3.78579]
[1724373063216,3.0,2641.6,2641.3,3.78596]
[1724373063217,3.0,2641.6,2641.5,3.78572]
[1724373063649,3.0,2641.6,2641.3,7.57183]
[1724373064021,3.0,2641.6,2641.3,7.5718]
[1724373064225,3.0,2641.6,2641.3,3.78587]
[1724373064697,3.691,2641.6,2641.1,3.7862]
[1724373064928,3.691,2641.6,2641.1,7.57243]
[1724373065168,3.691,2641.6,2641.2,3.78605]
[1724373065463,3.0,2641.6,2641.3,3.78594]
[1724373067978,5.4142,2641.6,2641.1,7.57238]
[1724373068282,5.4142,2641.6,2641.2,3.78614]
[1724373070372,3.0,2641.6,2641.2,3.78614]
[1724373070542,3.0,2641.6,2641.4,3.7858]
[1724373070750,2.3862,2641.8,2641.4,3.7858]
[1724373071266,2.3862,2641.8,2641.5,3.78565]
[1724373071778,2.3862,2641.8,2641.3,7.57178]
[1724373072067,2.3862,2641.8,2641.3,3.78587]
[1724373072493,3.19577011,2641.8,2641.3,3.78587]
[1724373072699,3.0,2641.7,2641.3,3.78587]
[1724373072857,3.0,2641.7,2641.3,7.5718]
[1724373073056,3.0,2641.7,2641.3,3.78587]
[1724373074980,3.0,2641.7,2641.1,3.78619]
[1724373075297,3.0,2641.7,2641.2,3.78614]
[1724373076414,3.61957701,2641.7,2641.2,3.78614]
[1724373077633,3.0,2641.7,2641.3,3.7859]
[1724373077787,2.3862,2641.8,2641.4,3.78579]
[1724373078538,2.3862,2641.8,2641.4,3.78586]
[1724373079581,2.3862,2641.8,2641.2,3.78611]
[1724373079996,2.3862,2641.8,2641.0,3.78637]
[1724373079997,2.3862,2641.8,2641.1,3.78629]
[1724373080176,0.23862,2641.7,2641.1,3.78629]
[1724373081040,0.23862,2641.7,2641.2,3.78615]
[1724373081183,2.3862,2641.8,2641.2,3.78615]
[1724373082042,2.3862,2641.8,2641.2,7.5722]
[1724373082740,2.3862,2641.8,2641.3,3.78599]
[1724373084532,2.3862,2641.8,2641.4,3.78585]
[1724373085938,3.0,2641.9,2641.5,3.78566]
[1724373086229,5.4895,2642.0,2641.5,3.78566]
[1724373086437,2.4895,2642.0,2641.5,3.78566]
[1724373086901,2.4895,2642.0,2641.6,3.78558]
[1724373088809,2.4895,2642.0,2641.7,3.78542]
[1724373089009,2.4895,2642.0,2641.7,3.78533]
[1724373089226,2.4895,2642.0,2641.8,3.78522]
[1724373089399,3.0,2642.0,2641.8,3.78522]
[1724373089755,5.3684,2642.2,2641.9,7.5702]
[1724373089921,5.3684,2642.2,2642.0,3.78499]
[1724373090226,5.3684,2642.2,2641.9,3.78514]
[1724373091045,5.3684,2642.2,2641.5,7.57124]
[1724373091345,6.29624,2642.2,2641.5,7.57124]
[1724373091640,6.29624,2642.2,2641.5,7.57126]
[1724373091951,6.29624,2642.2,2641.5,3.78561]
[1724373092590,6.29624,2642.2,2641.5,7.57126]
[1724373092788,6.29624,2642.2,2641.3,2.4866]
[1724373092985,6.29624,2642.2,2641.9,3.78504]
[1724373092986,5.3684,2642.2,2641.9,3.78504]
[1724373093404,5.3684,2642.2,2641.7,3.78534]
[1724373093605,5.3684,2642.2,2641.7,7.57071]
[1724373093935,5.3684,2642.2,2641.7,7.57068]
[1724373094140,5.3684,2642.2,2641.8,3.78526]
[1724373094638,5.3684,2642.2,2641.9,3.78512]
[1724373094791,5.3684,2642.2,2642.0,3.78496]
[1724373094994,3.91,2642.3,2642.1,3.78484]
[1724373095275,3.91,2642.3,2642.1,3.78478]
[1724373095545,3.91,2642.3,2642.2,3.78472]
[1724373096200,3.91,2642.3,2642.1,3.78478]
[1724373097151,3.91,2642.3,2642.2,3.78472]
[1724373097642,3.91,2642.3,2642.2,8.326389]
[1724373097840,3.91,2642.3,2642.2,7.56944]
[1724373098142,3.0,2642.7,2642.4,3.78432]
[1724373098350,2.3092,2642.8,2642.4,7.56867]
[1724373098515,2.3092,2642.8,2642.4,3.78432]
[1724373099153,2.3092,2642.8,2642.3,3.78448]
[1724373099455,2.81107011,2642.8,2642.2,3.78462]
[1724373100227,2.81107011,2642.8,2642.1,3.78483]
[1724373101729,2.81107011,2642.8,2642.2,3.78458]
[1724373101929,2.3092,2642.8,2642.2,3.78458]
[1724373102468,2.3092,2642.8,2642.4,3.78442]
[1724373102674,2.3092,2642.8,2642.6,3.78412]
[1724373102977,2.3092,2642.8,2642.6,7.5682]
[1724373103182,6.61950105,2642.9,2642.6,3.78408]
[1724373103470,3.91,2642.9,2642.7,3.78399]
[1724373104175,3.91,2642.9,2642.6,3.78408]
[1724373107276,3.91,2642.9,2642.6,7.56811]
[1724373107442,3.91,2642.9,2642.6,3.78403]
[1724373107977,3.91,2642.9,2642.6,7.5681]
[1724373108277,3.91,2642.9,2642.7,3.78399]
[1724373108429,3.91,2642.9,2642.8,3.78386]
[1724373108867,3.0,2643.0,2642.8,3.78386]
[1724373109128,2.4128,2643.2,2642.8,3.78386]
[1724373110468,2.4128,2643.2,2642.6,3.78408]
[1724373110676,6.79758105,2643.2,2642.5,7.5684]
[1724373110825,3.0,2643.1,2642.5,3.78418]
[1724373111030,3.0,2643.1,2642.5,7.5684]
[1724373111340,3.0,2643.1,2642.6,3.78412]
[1724373112731,3.0,2643.1,2642.7,3.784]
[1724373112943,3.0,2643.1,2642.7,4.54082]
[1724373113272,3.0,2643.1,2642.7,4.5408]
[1724373113478,5.3388,2643.4,2642.7,4.5408]
[1724373113633,5.3388,2643.4,2642.9,3.7837]
[1724373113823,5.3388,2643.4,2643.1,3.78342]
[1724373114341,5.3388,2643.4,2642.9,7.56728]
[1724373115330,5.3388,2643.4,2642.9,3.78358]
[1724373115877,5.3388,2643.4,2643.0,3.78356]
[1724373117128,5.3388,2643.4,2642.9,3.78358]
[1724373117768,5.3388,2643.4,2643.0,3.78354]
[1724373120257,3.91,2643.5,2643.0,4.54023]
[1724373121586,3.91,2643.5,2643.1,3.78341]
[1724373123253,3.91,2643.5,2643.4,3.783]
[1724373123560,3.91,2643.5,2643.4,7.566]
[1724373124396,3.91,2643.5,2643.4,3.783]
[1724373124588,5.03706318,2643.5,2643.3,3.78313]
[1724373124893,5.03706318,2643.5,2643.3,4.539763]
[1724373125497,5.03706318,2643.5,2643.4,3.783]
[1724373126470,3.91,2643.5,2643.4,3.783]
[1724373128460,3.91,2643.5,2643.4,7.566]
[1724373128651,2.3948,2643.9,2643.6,3.7827]
[1724373128854,5.7048973,2644.1,2643.7,0.37827]
[1724373129582,6.91,2644.1,2643.8,3.78242]
[1724373129786,2.3567,2644.2,2643.8,3.78235]
[1724373131416,5.3567,2644.2,2643.8,3.78235]
[1724373131607,5.3567,2644.2,2643.8,4.576674]
[1724373132610,5.3567,2644.2,2643.8,0.794324]
[1724373133391,2.4596,2644.0,2643.3,3.78304]
[1724373133588,2.7048973,2643.8,2643.3,3.78304]
[1724373134517,2.7048973,2643.8,2643.3,7.56611]
[1724373134876,2.4554,2643.7,2643.3,3.78304]
[1724373135106,2.4554,2643.7,2642.8,2.3879]
[1724373135288,2.4554,2643.7,2642.9,3.7836]
[1724373135483,2.7048973,2643.5,2643.0,3.78348]
[1724373135659,2.7048973,2643.5,2643.1,3.78342]
[1724373135859,2.7048973,2643.5,2643.1,7.56684]
[1724373136065,2.7048973,2643.5,2643.1,3.78342]
[1724373136913,2.3359,2643.4,2643.0,3.78349]
[1724373137064,2.7048973,2643.2,2642.8,7.36]
[1724373137428,2.3359,2643.1,2642.8,7.36]
[1724373137564,2.3359,2643.1,2642.7,3.78393]
[1724373138303,2.3359,2643.1,2642.5,3.7842]
[1724373138463,5.3359,2643.1,2642.5,3.7842]
[1724373138664,2.7048973,2642.9,2642.5,3.7842]
[1724373138866,2.7048973,2642.9,2642.5,7.5684]
[1724373139117,2.7048973,2642.9,2642.6,3.78406]
[1724373139665,2.7048973,2642.9,2642.7,3.784]
[1724373139898,2.7048973,2642.9,2642.5,3.7842]
[1724373140103,2.7048973,2643.2,2642.7,3.78389]
[1724373140335,2.7048973,2643.2,2642.8,3.78385]